fUST/lending_fUST_20250719
["ID","MTS","AMOUNT","RATE_DAILY","PERIOD"]
[373300435,1752934244346,-6614.82604384,0.00019383,2]
[373300437,1752934244355,-486.21870661,0.00019388,2]
[373300439,1752934244367,-500.0,0.0001942,2]
[373300441,1752934244376,-151.85065,0.0001944,2]
[373300443,1752934244385,-460.0,0.00019543,2]
[373300445,1752934244395,-460.0,0.00019543,2]
[373300447,1752934244404,-471.55391111,0.00019543,2]
[373300449,1752934244414,-476.26,0.00019575,2]
[373300451,1752934244423,-476.28,0.00019604,2]
[373300453,1752934244432,-599.1,0.00019604,2]
[373300455,1752934244442,-826.87,0.00019605,2]
[373300457,1752934244452,-1435.97,0.00019605,2]
[373300459,1752934244461,-920.23,0.00019605,2]
[373300461,1752934244471,-460.0,0.00019605,2]
[373300462,1752934244480,-460.0,0.00019605,2]
[373300464,1752934244490,-2932.88,0.00019605,2]
[373300466,1752934244499,-386.03062045,0.00019605,2]
[373300468,1752934244509,-543.61,0.00019605,2]
[373300470,1752934244518,-321.51376481,0.00019605,2]
[373300472,1752934244527,-460.0,0.00019605,2]
[373300474,1752934244536,-460.0,0.00019605,2]
[373300476,1752934244546,-1565.59,0.00019606,2]
[373300478,1752934244560,-601.45,0.00019606,2]
[373300480,1752934244569,-460.0,0.00019606,2]
[373300482,1752934244579,-460.0,0.00019606,2]
[373300484,1752934244588,-211.26,0.00019606,2]
[373300486,1752934244599,-763.22,0.00019606,2]
[373300488,1752934244608,-653.17,0.00019606,2]
[373300490,1752934244618,-460.0,0.00019606,2]
[373300492,1752934244629,-851.7,0.00019606,2]
[373300494,1752934244639,-460.0,0.00019606,2]
[373300496,1752934244649,-460.0,0.00019606,2]
[373300498,1752934244658,-676.13,0.00019606,2]
[373300500,1752934244668,-6614.82604384,0.00019624,2]
[373300502,1752934244678,-300.0,0.0001971,2]
[373300504,1752934244687,-460.0,0.00019817,2]
[373300506,1752934244697,-460.0,0.00019817,2]
[373300508,1752934244706,-500.0,0.00019822,2]
[373300510,1752934244716,-476.26,0.00019849,2]
[373300512,1752934244725,-6614.82604384,0.00019866,2]
[373300514,1752934244735,-476.28,0.00019878,2]
[373300516,1752934244745,-599.1,0.00019878,2]
[373300518,1752934244754,-826.87,0.00019879,2]
[373300520,1752934244764,-1435.97,0.00019879,2]
[373300521,1752934244774,-920.23,0.00019879,2]
[373300522,1752934244783,-460.0,0.00019879,2]
[373300523,1752934244793,-460.0,0.00019879,2]
[373300524,1752934244803,-2932.88,0.00019879,2]
[373300525,1752934244812,-543.61,0.00019879,2]
[373300526,1752934244822,-460.0,0.00019879,2]
[373300527,1752934244833,-460.0,0.00019879,2]
[373300528,1752934244842,-1565.59,0.0001988,2]
[373300529,1752934244852,-601.45,0.0001988,2]
[373300530,1752934244863,-460.0,0.0001988,2]
[373300531,1752934244873,-763.22,0.0001988,2]
[373300532,1752934244882,-653.17,0.0001988,2]
[373300533,1752934244892,-851.7,0.0001988,2]
[373300534,1752934244902,-460.0,0.0001988,2]
[373300535,1752934244912,-337.29312359,0.0001988,2]
[373300536,1752934244922,-440.69,0.0001988,2]
[373300537,1752934244931,-676.13,0.0001988,2]
[373300538,1752934244941,-679.88427532,0.00019921,2]
[373300539,1752934244951,-1000.0,0.00019921,2]
[373300540,1752934244961,-500.0,0.00019956,2]
[373300541,1752934244971,-500.0,0.00019971,2]
[373300542,1752934244980,-500.0,0.00019971,2]
[373300543,1752934244990,-124332.83828778,0.0001999,2]
[373300544,1752934245000,-173.416,0.0002,2]
[373300545,1752934245010,-5929.79780296,0.0002,2]
[373300546,1752934245020,-300.40023785,0.0002,2]
[373300547,1752934245029,-460.0,0.00020091,2]
[373300548,1752934245039,-460.0,0.00020091,2]
[373300549,1752934245049,-6614.82604384,0.00020107,2]
[373300550,1752934245059,-476.26,0.00020123,2]
[373300551,1752934245069,-476.28,0.00020152,2]
[373300552,1752934245079,-599.1,0.00020152,2]
[373300553,1752934245089,-826.87,0.00020153,2]
[373300554,1752934245098,-1435.97,0.00020153,2]
[373300555,1752934245108,-920.23,0.00020153,2]
[373300556,1752934245120,-460.0,0.00020153,2]
[373300557,1752934245131,-460.0,0.00020153,2]
[373300558,1752934245141,-2932.88,0.00020153,2]
[373300559,1752934245150,-543.61,0.00020153,2]
[373300560,1752934245159,-460.0,0.00020153,2]
[373300561,1752934245169,-460.0,0.00020153,2]
[373300562,1752934245179,-1565.59,0.00020154,2]
[373300563,1752934245189,-601.45,0.00020154,2]
[373300564,1752934245203,-460.0,0.00020154,2]
[373300565,1752934245213,-763.22,0.00020154,2]
[373300566,1752934245223,-653.17,0.00020154,2]
[373300567,1752934245232,-851.7,0.00020154,2]
[373300568,1752934245241,-460.0,0.00020154,2]
[373300569,1752934245251,-676.13,0.00020154,2]
[373300570,1752934245261,-467.412121,0.00020187,2]
[373300571,1752934245271,-501.4575332,0.00020246,2]
[373300572,1752934245280,-500.0,0.00020246,2]
[373300573,1752934245290,-500.0,0.00020246,2]
[373300574,1752934245299,-500.0,0.00020246,2]
[373300575,1752934245309,-6614.82604384,0.00020348,3]
[373300576,1752934245319,-460.0,0.00020365,2]
[373300577,1752934245329,-460.0,0.00020365,2]
[373300578,1752934245339,-418.0,0.00020373,2]
[373300579,1752934245348,-476.26,0.00020397,2]
[373300580,1752934245358,-394.58,0.00020401,3]
[373300581,1752934245369,-476.28,0.00020426,2]
[373300582,1752934245380,-599.1,0.00020426,2]
[373300583,1752934245390,-826.87,0.00020427,2]
[373300584,1752934245399,-1435.97,0.00020427,2]
[373300585,1752934245409,-920.23,0.00020427,2]
[373300586,1752934245419,-460.0,0.00020427,2]
[373300587,1752934245429,-460.0,0.00020427,2]
[373300588,1752934245439,-2932.88,0.00020427,2]
[373300589,1752934245448,-543.61,0.00020427,2]
[373300590,1752934245458,-236.54521766,0.00020427,2]
[373300591,1752934245468,-460.0,0.00020427,2]
[373300592,1752934245478,-1565.59,0.00020428,2]
[373300593,1752934245488,-601.45,0.00020428,2]
[373300594,1752934245498,-460.0,0.00020428,2]
[373300595,1752934245507,-763.22,0.00020428,2]
[373300596,1752934245517,-653.17,0.00020428,2]
[373300597,1752934245526,-851.7,0.00020428,2]
[373300598,1752934245536,-460.0,0.00020428,2]
[373300599,1752934245546,-676.13,0.00020428,2]
[373300600,1752934245561,-321.0,0.00020438,2]
[373300601,1752934245571,-789.18,0.00020462,3]
[373300602,1752934245581,-1006.81965426,0.00020468,2]
[373300603,1752934245591,-12612.80205064,0.0002047,3]
[373300604,1752934245600,-160.0,0.00020472,3]
[373300605,1752934245609,-214.52603969,0.00020472,3]
[373300606,1752934245620,-1578.34,0.00020472,3]
[373300607,1752934245631,-1356.46,0.00020482,3]
[373300608,1752934245641,-500.0,0.00020516,2]
[373300609,1752934245650,-500.0,0.00020553,2]
[373300610,1752934245660,-486.21870661,0.00020562,2]
[373300611,1752934245669,-418.0,0.00020568,2]
[373300612,1752934245678,-6614.82604384,0.0002059,3]
[373300613,1752934245686,-168.0,0.00020593,2]
[373300614,1752934245694,-4000.0,0.00020596,4]
[373300615,1752934245703,-407.28226249,0.00020624,2]
[373300616,1752934245712,-500.0,0.00020624,2]
[373300617,1752934245721,-313.3,0.00020639,2]
[373300618,1752934245729,-460.0,0.00020639,2]
[373300619,1752934245738,-215.0738,0.00020642,2]
[373300620,1752934245748,-151.85065,0.00020659,3]
[373300621,1752934245758,-418.0,0.00020662,2]
[373300622,1752934245768,-476.26,0.00020671,2]
[373300623,1752934245778,-476.28,0.000207,2]
[373300624,1752934245788,-826.87,0.00020701,2]
[373300625,1752934245798,-1435.97,0.00020701,2]
[373300626,1752934245807,-920.23,0.00020701,2]
[373300627,1752934245817,-159.89713409,0.00020701,2]
[373300628,1752934245828,-460.0,0.00020701,2]
[373300629,1752934245838,-2932.88,0.00020701,2]
[373300630,1752934245848,-543.61,0.00020701,2]
[373300631,1752934245859,-460.0,0.00020701,2]
[373300632,1752934245870,-1565.59,0.00020702,2]
[373300633,1752934245880,-601.45,0.00020702,2]
[373300634,1752934245890,-365.8002156,0.00020702,2]
[373300635,1752934245899,-763.22,0.00020702,2]
[373300636,1752934245909,-653.17,0.00020702,2]
[373300637,1752934245919,-460.0,0.00020702,2]
[373300638,1752934245929,-851.7,0.00020702,2]
[373300639,1752934245938,-676.13,0.00020702,2]
[373300640,1752934245948,-418.0,0.00020751,2]
[373300641,1752934245957,-418.0,0.00020756,2]
[373300642,1752934245967,-1041.865,0.00020775,2]
[373300643,1752934245976,-1000.0,0.00020794,2]
[373300644,1752934245985,-1370.4,0.000208,2]
[373300645,1752934245995,-6614.82604384,0.00020831,4]
[373300646,1752934246004,-418.0,0.0002086,2]
[373300647,1752934246013,-500.0,0.00020865,2]
[373300648,1752934246023,-2156.0,0.00020875,2]
[373300649,1752934246032,-968.0,0.00020875,2]
[373300650,1752934246041,-415.376,0.00020875,2]
[373300651,1752934246051,-416.784,0.00020875,2]
[373300652,1752934246060,-168.0,0.00020902,2]
[373300653,1752934246070,-578.44892129,0.00020913,2]
[373300654,1752934246079,-151.85065,0.00020921,2]
[373300655,1752934246089,-224.2,0.0002094,2]
[373300656,1752934246098,-500.0,0.00020942,2]
[373300657,1752934246108,-476.26,0.00020945,2]
[373300658,1752934246118,-476.28,0.00020974,2]
[373300659,1752934246127,-826.87,0.00020975,2]
[373300660,1752934246136,-1435.97,0.00020975,2]
[373300661,1752934246146,-920.23,0.00020975,2]
[373300662,1752934246155,-460.0,0.00020975,2]
[373300663,1752934246164,-2932.88,0.00020975,2]
[373300664,1752934246174,-543.61,0.00020975,2]
[373300665,1752934246199,-460.0,0.00020975,2]
[373300666,1752934246209,-1565.59,0.00020976,2]
[373300667,1752934246219,-601.45,0.00020976,2]
[373300668,1752934246229,-763.22,0.00020976,2]
[373300669,1752934246238,-653.17,0.00020976,2]
[373300670,1752934246247,-460.0,0.00020976,2]
[373300671,1752934246257,-851.7,0.00020976,2]
[373300672,1752934246267,-676.13,0.00020976,2]
[373300673,1752934246276,-150.0,0.00021,2]
[373300674,1752934246286,-151.85065,0.00021,4]
[373300675,1752934246295,-6614.82604384,0.00021072,4]
[373300676,1752934246305,-418.0,0.00021076,2]
[373300677,1752934246315,-503.17903582,0.00021101,2]
[373300678,1752934246324,-168.0,0.00021108,2]
[373300679,1752934246334,-418.0,0.00021202,2]
[373300680,1752934246343,-476.26,0.00021219,2]
[373300681,1752934246353,-571.33485352,0.00021239,2]
[373300682,1752934246363,-476.28,0.00021248,2]
[373300683,1752934246372,-826.87,0.00021249,2]
[373300684,1752934246382,-1435.97,0.00021249,2]
[373300685,1752934246391,-920.23,0.00021249,2]
[373300686,1752934246401,-460.0,0.00021249,2]
[373300687,1752934246411,-2932.88,0.00021249,2]
[373300699,1752934246530,-543.61,0.00021249,2]
[373300702,1752934246541,-507.8,0.00021249,2]
[373300704,1752934246551,-1565.59,0.0002125,2]
[373300706,1752934246562,-601.45,0.0002125,2]
[373300708,1752934246572,-763.22,0.0002125,2]
[373300710,1752934246581,-653.17,0.0002125,2]
[373300712,1752934246590,-460.0,0.0002125,2]
[373300714,1752934246601,-851.7,0.0002125,2]
[373300716,1752934246610,-676.13,0.0002125,2]
[373300718,1752934246622,-6614.82604384,0.00021314,5]
[373300721,1752934246642,-1500.0,0.00021342,2]
[373300723,1752934246654,-168.0,0.00021345,2]
[373300725,1752934246664,-418.0,0.00021363,2]
[373300727,1752934246675,-250.0,0.00021371,2]
[373300729,1752934246685,-476.26,0.00021493,2]
[373300731,1752934246695,-476.28,0.00021522,2]
[373300733,1752934246704,-826.87,0.00021523,2]
[373300736,1752934246714,-1435.97,0.00021523,2]
[373300738,1752934246725,-920.23,0.00021523,2]
[373300740,1752934246735,-460.0,0.00021523,2]
[373300742,1752934246745,-2932.88,0.00021523,2]
[373300744,1752934246755,-543.61,0.00021523,2]
[373300746,1752934246765,-1565.59,0.00021524,2]
[373300748,1752934246775,-601.45,0.00021524,2]
[373300750,1752934246786,-763.22,0.00021524,2]
[373300752,1752934246796,-653.17,0.00021524,2]
[373300755,1752934246807,-460.0,0.00021524,2]
[373300757,1752934246817,-851.7,0.00021524,2]
[373300759,1752934246827,-676.13,0.00021524,2]
[373300761,1752934246837,-168.0,0.0002154,2]
[373300763,1752934246847,-6614.82604384,0.00021555,5]
[373300765,1752934246857,-150.0,0.00021567,2]
[373300767,1752934246868,-649.403,0.00021567,2]
[373300769,1752934246878,-500.0,0.00021612,2]
[373300771,1752934246887,-418.0,0.00021627,2]
[373300773,1752934246897,-418.0,0.00021633,2]
[373300775,1752934246908,-486.21870661,0.00021736,2]
[373300777,1752934246918,-5868.6006789,0.00021739,2]
[373300780,1752934246928,-418.0,0.0002175,2]
[373300782,1752934246939,-151.0,0.00021767,2]
[373300783,1752934246951,-476.26,0.00021767,2]
[373300785,1752934246960,-151.85065,0.00021787,3]
[373300786,1752934246970,-826.87,0.00021796,2]
[373300787,1752934246979,-1435.97,0.00021796,2]
[373300788,1752934246989,-920.23,0.00021796,2]
[373300789,1752934246999,-460.0,0.00021796,2]
[373300790,1752934247009,-543.61,0.00021796,2]
[373300791,1752934247019,-476.28,0.00021796,2]
[373300792,1752934247029,-6614.82604384,0.00021797,6]
[373300793,1752934247040,-2932.88,0.00021797,2]
[373300794,1752934247049,-1565.59,0.00021798,2]
[373300795,1752934247060,-601.45,0.00021798,2]
[373300796,1752934247070,-763.22,0.00021798,2]
[373300797,1752934247080,-653.17,0.00021798,2]
[373300798,1752934247090,-460.0,0.00021798,2]
[373300799,1752934247100,-851.7,0.00021798,2]
[373300800,1752934247110,-676.13,0.00021798,2]
[373300801,1752934247121,-418.0,0.0002183,2]
[373300802,1752934247131,-500.0,0.0002189,2]
[373300803,1752934247141,-160.0,0.00021891,3]
[373300804,1752934247151,-500.0,0.00021908,2]
[373300805,1752934247161,-150.0,0.00021918,2]
[373300806,1752934247171,-150.0,0.00021918,2]
[373300807,1752934247181,-418.0,0.00021928,2]
[373300808,1752934247211,-2172.99,0.00022,7]
[373300809,1752934247220,-5577.55,0.00022,7]
[373300810,1752934247230,-168.0,0.00022,2]
[373300811,1752934247241,-200.0,0.00022,2]
[373300812,1752934247251,-223.0315306,0.00022011,2]
[373300813,1752934247261,-418.0,0.00022019,2]
[373300814,1752934247274,-418.0,0.00022025,2]
[373300815,1752934247284,-6614.82604384,0.00022038,6]
[373300816,1752934247294,-476.26,0.00022041,2]
[373300817,1752934247304,-151.0,0.00022041,7]
[373300818,1752934247313,-151.85065,0.0002205,4]
[373300819,1752934247324,-826.87,0.0002207,2]
[373300820,1752934247332,-1435.97,0.0002207,2]
[373300821,1752934247342,-920.23,0.0002207,2]
[373300822,1752934247352,-460.0,0.0002207,2]
[373300823,1752934247363,-543.61,0.0002207,2]
[373300824,1752934247374,-476.28,0.0002207,2]
[373300825,1752934247384,-151.0,0.0002207,7]
[373300826,1752934247394,-2932.88,0.00022071,2]
[373300827,1752934247404,-1565.59,0.00022072,2]
[373300828,1752934247414,-601.45,0.00022072,2]
[373300829,1752934247425,-763.22,0.00022072,2]
[373300830,1752934247435,-653.17,0.00022072,2]
[373300831,1752934247444,-460.0,0.00022072,2]
[373300832,1752934247453,-851.7,0.00022072,2]
[373300833,1752934247463,-676.13,0.00022072,2]
[373300834,1752934247473,-418.0,0.00022088,2]
[373300835,1752934247484,-151.0,0.00022088,7]
[373300836,1752934247494,-151.0,0.00022088,7]
[373300837,1752934247504,-151.0,0.00022088,7]
[373300838,1752934247513,-151.0,0.00022088,7]
[373300839,1752934247523,-151.0,0.00022088,7]
[373300840,1752934247533,-151.0,0.00022088,7]
[373300841,1752934247543,-200.0,0.00022192,7]
[373300842,1752934247557,-153.0,0.00022192,2]
[373300843,1752934247567,-153.0,0.00022192,2]
[373300844,1752934247577,-67429.5,0.000222,2]
[373300845,1752934247587,-500.0,0.0002222,2]
[373300846,1752934247598,-500.0,0.0002222,2]
[373300847,1752934247608,-500.0,0.0002222,2]
[373300848,1752934247619,-418.0,0.00022237,2]
[373300849,1752934247631,-500.0,0.00022271,2]
[373300850,1752934247641,-2126.04845076,0.00022272,2]
[373300851,1752934247651,-6614.82604384,0.00022279,6]
[373300852,1752934247661,-476.26,0.00022315,2]
[373300853,1752934247671,-826.87,0.00022344,2]
[373300854,1752934247682,-1435.97,0.00022344,2]
[373300855,1752934247692,-920.23,0.00022344,2]
[373300856,1752934247702,-460.0,0.00022344,2]
[373300857,1752934247712,-543.61,0.00022344,2]
[373300858,1752934247722,-476.28,0.00022344,2]
[373300859,1752934247733,-2932.88,0.00022345,2]
[373300860,1752934247743,-1565.59,0.00022346,2]
[373300861,1752934247753,-601.45,0.00022346,2]
[373300862,1752934247763,-763.22,0.00022346,2]
[373300863,1752934247773,-653.17,0.00022346,2]
[373300864,1752934247783,-332.46861876,0.00022346,2]
[373300865,1752934247793,-851.7,0.00022346,2]
[373300866,1752934247803,-676.13,0.00022346,2]
[373300867,1752934247814,-168.0,0.00022381,2]
[373300868,1752934247823,-151.85065,0.00022402,2]
[373300869,1752934247833,-12500.0,0.00022411,7]
[373300870,1752934247843,-168.0,0.00022425,2]
[373300871,1752934247854,-12500.0,0.00022435,7]
[373300872,1752934247865,-12500.0,0.00022444,7]
[373300873,1752934247874,-250.0,0.00022466,2]
[373300874,1752934247884,-150.75950598,0.00022466,2]
[373300875,1752934247894,-13357.9,0.000225,7]
[373300876,1752934247904,-160.0,0.000225,7]
[373300877,1752934247914,-214.52603969,0.000225,7]
[373300878,1752934247924,-12612.80205064,0.000225,7]
[373300879,1752934247933,-6614.82604384,0.00022521,7]
[373300880,1752934247943,-153.0,0.00022548,2]
[373300881,1752934247952,-153.0,0.00022548,2]
[373300882,1752934247962,-153.0,0.00022548,2]
[373300883,1752934247972,-155.7628533,0.00022548,2]
[373300884,1752934247982,-1954.12,0.00022577,4]
[373300885,1752934247992,-476.26,0.00022589,2]
[373300886,1752934248001,-231.667571,0.00022603,2]
[373300887,1752934248011,-826.87,0.00022618,2]
[373300888,1752934248021,-1435.97,0.00022618,2]
[373300889,1752934248040,-920.23,0.00022618,2]
[373300890,1752934248055,-460.0,0.00022618,2]
[373300891,1752934248070,-543.61,0.00022618,2]
[373300892,1752934248084,-476.28,0.00022618,2]
[373300893,1752934248098,-2932.88,0.00022619,2]
[373300894,1752934248110,-1565.59,0.0002262,2]
[373300895,1752934248123,-601.45,0.0002262,2]
[373300896,1752934248137,-151.0,0.0002262,7]
[373300897,1752934248149,-763.22,0.0002262,2]
[373300898,1752934248163,-653.17,0.0002262,2]
[373300899,1752934248176,-851.7,0.0002262,2]
[373300900,1752934248189,-676.13,0.0002262,2]
[373300901,1752934248202,-1954.12,0.00022677,7]
[373300902,1752934248215,-500.0,0.00022708,2]
[373300903,1752934248229,-500.0,0.00022727,2]
[373300904,1752934248242,-500.0,0.00022759,14]
[373300905,1752934248256,-164.26806508,0.00022759,14]
[373300906,1752934248268,-500.0,0.00022759,14]
[373300907,1752934248281,-6614.82604384,0.00022762,7]
[373300908,1752934248293,-1000.0,0.00022768,2]
[373300909,1752934248307,-500.0,0.00022768,2]
[373300910,1752934248322,-1000.0,0.00022768,2]
[373300911,1752934248334,-1954.12,0.00022777,5]
[373300912,1752934248347,-1000.0,0.00022819,2]
[373300913,1752934248361,-151.85065,0.00022835,6]
[373300914,1752934248375,-476.26,0.00022863,2]
[373300915,1752934248388,-1954.12,0.00022877,7]
[373300916,1752934248400,-826.87,0.00022892,2]
[373300917,1752934248411,-151.0,0.00022892,7]
[373300918,1752934248421,-151.0,0.00022892,7]
[373300919,1752934248433,-151.0,0.00022892,7]
[373300920,1752934248444,-151.0,0.00022892,7]
[373300921,1752934248456,-151.0,0.00022892,7]
[373300922,1752934248468,-151.0,0.00022892,7]
[373300923,1752934248480,-1435.97,0.00022892,2]
[373300924,1752934248492,-920.23,0.00022892,2]
[373300925,1752934248504,-151.0,0.00022892,7]
[373300926,1752934248517,-538.639597,0.00022892,2]
[373300927,1752934248530,-543.61,0.00022892,2]
[373300928,1752934248543,-476.28,0.00022892,2]
[373300929,1752934248557,-2932.88,0.00022893,2]
[373300930,1752934248570,-1565.59,0.00022894,2]
[373300931,1752934248581,-601.45,0.00022894,2]
[373300932,1752934248591,-763.22,0.00022894,2]
[373300933,1752934248603,-653.17,0.00022894,2]
[373300934,1752934248614,-851.7,0.00022894,2]
[373300935,1752934248624,-676.13,0.00022894,2]
[373300936,1752934248637,-486.21870661,0.0002291,2]
[373300937,1752934248650,-151.85065,0.00022915,3]
[373300938,1752934248664,-151.85065,0.00022922,14]
[373300939,1752934248676,-1954.12,0.00022977,6]
[373300940,1752934248689,-151.0,0.00022977,7]
[373300941,1752934248701,-23348.8999414,0.00023,10]
[373300942,1752934248712,-28374.26107473,0.00023,2]
[373300943,1752934248723,-500.0,0.00023,2]
[373300944,1752934248735,-500.0,0.00023,2]
[373300945,1752934248747,-500.0,0.00023,2]
[373300946,1752934248760,-508.48232453,0.00023,2]
[373300947,1752934248771,-500.0,0.00023,2]
[373300948,1752934248782,-500.0,0.00023,2]
[373300949,1752934248794,-179.64412037,0.00023,2]
[373300950,1752934248804,-500.0,0.00023,2]
[373300951,1752934248816,-500.0,0.00023,2]
[373300952,1752934248827,-151.0,0.00023,7]
[373300953,1752934248839,-151.0,0.00023,7]
[373300954,1752934248850,-160.0,0.00023,3]
[373300955,1752934248861,-151.85065,0.00023,10]
[373300956,1752934248873,-230.94145789,0.00023,3]
[373300957,1752934248884,-160.0,0.00023,3]
[373300958,1752934248896,-160.0,0.00023,3]
[373300959,1752934248908,-215.67360783,0.00023,3]
[373300960,1752934248919,-525.83049785,0.00023,3]
[373300961,1752934248931,-151.0,0.00023,7]
[373300962,1752934248943,-839.454303,0.00023,3]
[373300963,1752934248954,-151.862799,0.00023,7]
[373300964,1752934248967,-160.0,0.00023,3]
[373300965,1752934248978,-151.0,0.00023,7]
[373300966,1752934248990,-151.0,0.00023,7]
[373300967,1752934249002,-151.0,0.00023,7]
[373300968,1752934249014,-151.0,0.00023,7]
[373300969,1752934249026,-151.0,0.00023,7]
[373300970,1752934249037,-151.0,0.00023,7]
[373300971,1752934249049,-6614.82604384,0.00023003,8]
[373300972,1752934249060,-500.0,0.00023004,2]
[373300973,1752934249071,-350.0,0.00023014,2]
[373300974,1752934249083,-200.0,0.00023014,7]
[373300975,1752934249094,-153.0,0.00023014,2]
[373300976,1752934249105,-153.0,0.00023014,2]
[373300977,1752934249118,-153.0,0.00023014,2]
[373300978,1752934249129,-153.0,0.00023014,2]
[373300979,1752934249140,-153.0,0.00023014,2]
[373300980,1752934249152,-153.0,0.00023014,2]
[373300981,1752934249163,-153.0,0.00023014,2]
[373300982,1752934249174,-153.0,0.00023014,2]
[373300983,1752934249185,-153.0,0.00023014,2]
[373300984,1752934249197,-153.0,0.00023014,2]
[373300985,1752934249208,-153.0,0.00023014,2]
[373300986,1752934249219,-153.0,0.00023014,2]
[373300987,1752934249230,-153.0,0.00023014,2]
[373300988,1752934249240,-160.0,0.00023038,4]
[373300989,1752934249251,-1954.12,0.00023077,7]
[373300990,1752934249262,-5577.55,0.000231,7]
[373300991,1752934249273,-151.85065,0.00023101,4]
[373300992,1752934249284,-476.26,0.00023137,2]
[373300993,1752934249295,-826.87,0.00023166,2]
[373300994,1752934249306,-1435.97,0.00023166,2]
[373300995,1752934249317,-920.23,0.00023166,2]
[373300996,1752934249328,-543.61,0.00023166,2]
[373300997,1752934249339,-476.28,0.00023166,2]
[373300998,1752934249350,-2932.88,0.00023167,2]
[373300999,1752934249362,-1565.59,0.00023168,2]
[373301000,1752934249373,-601.45,0.00023168,2]
[373301001,1752934249385,-763.22,0.00023168,2]
[373301002,1752934249396,-653.17,0.00023168,2]
[373301003,1752934249406,-851.7,0.00023168,2]
[373301004,1752934249417,-676.13,0.00023168,2]
[373301005,1752934249429,-1954.12,0.00023177,2]
[373301006,1752934249439,-6644.62713856,0.00023205,2]
[373301007,1752934249450,-6614.82604384,0.00023245,8]
[373301008,1752934249461,-1954.12,0.00023277,6]
[373301009,1752934249472,-67429.5,0.000233,2]
[373301010,1752934249483,-153.0,0.00023305,2]
[373301011,1752934249494,-153.0,0.00023305,2]
[373301012,1752934249506,-153.0,0.00023305,2]
[373301013,1752934249516,-153.0,0.00023305,2]
[373301014,1752934249528,-1500.0,0.00023316,2]
[373301015,1752934249539,-1500.0,0.00023316,2]
[373301016,1752934249550,-151.85065,0.00023362,5]
[373301017,1752934249564,-1000.0,0.00023367,2]
[373301018,1752934249575,-1954.12,0.00023377,5]
[373301019,1752934249586,-231.28369723,0.0002338,2]
[373301020,1752934249598,-2172.99,0.000234,7]
[373301021,1752934249609,-476.26,0.00023411,2]
[373301022,1752934249621,-151.85065,0.00023426,6]
[373301023,1752934249632,-6644.62713856,0.00023433,2]
[373301024,1752934249644,-826.93897764,0.0002344,2]
[373301025,1752934249655,-1436.10084004,0.0002344,2]
[373301026,1752934249666,-920.30381613,0.0002344,2]
[373301027,1752934249677,-543.64648344,0.0002344,2]
[373301028,1752934249688,-476.46218928,0.0002344,2]
[373301029,1752934249861,-2933.110329,0.00023441,2]
[373301030,1752934249871,-1565.7,0.00023442,2]
[373301031,1752934249881,-601.47213994,0.00023442,2]
[373301032,1752934249892,-763.22822197,0.00023442,2]